Cogmind - Beta 11.1 @@@ ROGUE MODE // 2022.05.22 @ 00:58:05 Player: Pogmind Result: Destroyed by S-10 Pest with Light Assault Rifle Performance ------------- Evolutions (1) 500 Regions Visited (6) 1200 Robots Destroyed (84) 420 Value Destroyed (1835) 1835 Prototype IDs (32) 640 Alien Tech Used (0) 0 Bonus (-438) -438 TOTAL SCORE: 4157 Bonus ------- High Alert Combat Kills 43 Aligned with FarCom 300 Friendly Fire -781 Cogmind --------- Core Integrity 0/400 Matter 282/300 Energy 100/100 System Corruption 0% Temperature Cool (0) Movement Core (1400) Ox27 Location -8/Mines Parts ------- > --- POWER (1) -------- (None) > --- PROPULSION (2) --- (None) > --- UTILITY (4) ------ Improved Heat Sink Huge Storage Unit Improved Targeting Computer Experimental Core Analyzer > --- WEAPON (2) ------- Spread Laser > --- INVENTORY (25) --- Light Neutrino Core Light Treads Light Treads Combat Antigrav System Experimental Heat Sink High-capacity Storage Unit Improved Targeting Computer Experimental Targeting Computer Improved Armor Integrity Analyzer Advanced Transmission Jammer Spread Laser Spread Laser EM Pulse Cannon EM Pulse Cannon EM Pulse Cannon 8R-AWN's Boregun 8R-AWN's Boregun Missile Launcher Missile Launcher Scythe Scythe Scythe Peak State ------------ > --- POWER ------------ Light Neutrino Core > --- PROPULSION ------- Light Treads Light Treads > --- UTILITY ---------- Improved Heat Sink Large Storage Unit Improved Targeting Computer Shield Generator > --- WEAPON ----------- 8R-AWN's Boregun 8R-AWN's Boregun > --- INVENTORY -------- Heavy Ion Engine Light Treads Light Treads Light Treads Advanced Myomer Leg Experimental Heat Sink Superbattery EM Pulse Cannon EM Pulse Cannon EM Pulse Cannon EM Pulse Cannon Scythe Scythe Scythe Scythe [Rating: 42] Favorites ----------- Power Reinforced Ion Engine Engine Reinforced Ion Engine Power Core Light Neutrino Core Propulsion Light Treads Treads Light Treads Leg Advanced Myomer Leg Wheel Wheel Hover Unit Makeshift Hover Unit Utility Huge Storage Unit Device Shield Generator Storage Huge Storage Unit Processor Improved Targeting Computer Protection Core Shielding Weapon Shotgun Energy Gun Spread Laser Energy Cannon EM Pulse Cannon Ballistic Gun Shotgun Launcher Missile Launcher Impact Weapon Flail Slashing Weapon Scythe Build | -11 -10 -10 -9 -9 -9 -8 ------- Run | Scr Mat Min Mat Min Exi Min Slots Evolved 2 | . . . 2 . . . Power . | . . . . . . . Propulsion . | . . . . . . . Utility 2 | . . . 2 . . . Weapon . | . . . . . . . Parts Attached 113 | 9 12 1 50 1 37 3 Power 11 | 2 3 . 3 . 3 . Engine 10 | 2 3 . 3 . 2 . Core 1 | . . . . . 1 . Reactor . | . . . . . . . Propulsion 22 | 2 4 . 8 . 8 . Treads 18 | 2 4 . 6 . 6 . Leg 1 | . . . . . 1 . Wheel 2 | . . . 2 . . . Hover 1 | . . . . . 1 . Flight . | . . . . . . . Utility 28 | 2 2 . 10 1 12 1 Device 16 | 1 1 . 6 1 7 . Storage 5 | 1 1 . . . 3 . Processor 3 | . . . 2 . . 1 Hackware . | . . . . . . . Protection 4 | . . . 2 . 2 . Artifact . | . . . . . . . Weapon 52 | 3 3 1 29 . 14 2 Energy Gun 12 | 2 1 . 5 . 3 1 Energy Cannon 4 | . . . 2 . 2 . Ballistic Gun 26 | 1 2 1 18 . 4 . Ballistic Cannon . | . . . . . . . Launcher 4 | . . . 1 . 2 1 Special Weapon . | . . . . . . . Impact Weapon 1 | . . . 1 . . . Slashing Weapon 5 | . . . 2 . 3 . Piercing Weapon . | . . . . . . . Special Melee Weapon . | . . . . . . . Unidentified Prototypes 7 | . . . 2 . 4 1 Corrupted Parts 1 | 1 . . . . . . System Corruption 1 | 1 . . . . . . Parts Lost 22 | 1 3 1 6 . 6 5 Power 3 | 1 1 . . . . 1 Propulsion 7 | . 1 . 2 . 2 2 Utility 7 | . . . 2 . 4 1 Weapon 5 | . 1 1 2 . . 1 Highest Loss Streak 5 | 1 1 1 2 . 5 5 To Critical Strikes 3 | . . . . . 3 . Average Slot Usage (%) 99 | . 99 100 98 100 99 97 Engine 11 | . 13 14 11 11 11 11 Treads 21 | . 28 28 17 22 22 20 Wheel 1 | . . . 4 . . . Device 13 | . 14 14 11 11 15 20 Storage 11 | . 14 14 11 11 11 11 Processor 6 | . . . 6 11 11 11 Protection 7 | . . . 14 11 5 . Energy Gun 8 | . 15 9 4 22 9 22 Ballistic Gun 12 | . 12 18 17 . 5 . Launcher 1 | . . . . . 3 . Naked Turns . | . . . . . . . Heaviest Build 105 | 13 96 96 100 98 105 97 Greatest Support 40 | 40 40 40 40 40 40 40 Greatest Overweight (x) 9 | 1 2 2 9 2 2 2 Average Overweight (x) 3 | . 1 2 5 2 1 2 Largest Inventory Capacity 25 | 8 25 25 25 25 25 25 Average Capacity 22 | 7 19 25 25 25 20 25 Most Carried 25 | 5 25 25 25 25 25 25 Average Carried 21 | 3 15 24 24 25 19 24 Final Capacity 25 | 8 25 25 25 25 25 25 Final Carried 25 | 4 25 25 25 25 25 22 Class Distribution -------------------- 100% | Mutant Dominant Class ---------------- Mutant | -10/Materials Mutant | -10/Mines Mutant | -9/Materials Mutant | -9/Mines Mutant | -9/Exiles Mutant | -8/Mines Resources | -11 -10 -10 -9 -9 -9 -8 ----------- Run | Scr Mat Min Mat Min Exi Min Matter Collected 2571 | 275 140 169 1089 20 878 . Remotely . | . . . . . . . Salvage Created 2759 | 153 449 163 1175 155 643 21 Parts 249 | 10 38 6 94 8 83 10 Haulers Intercepted 4 | . 1 . 3 . . . Recyclers Shooed 3 | 1 1 . 1 . . . Parts Field Recycled . | . . . . . . . Retrieved Matter . | . . . . . . . Parts Self-Destructed . | . . . . . . . Prevented . | . . . . . . . Kills | -11 -10 -10 -9 -9 -9 -8 ------- Run | Scr Mat Min Mat Min Exi Min Combat Hostiles Destroyed 55 | . 8 4 31 4 4 4 Melee 1 | . . . . . 1 . Guns 44 | . 8 4 27 4 . 1 Cannons 1 | . . . . . 1 . AOE 9 | . . . 4 . 2 3 Classes Destroyed 12 | 2 6 . 1 . 3 . Worker 2 | . 1 . 1 . . . Tunneler 4 | 4 . . . . . . Hauler 4 | . 1 . 3 . . . Recycler 1 | 1 . . . . . . Operator 2 | . 1 . 1 . . . Turret 1 | . . . . . 1 . Watcher 8 | . 3 . 5 . . . Swarmer 17 | . 2 . 11 . . 4 Grunt 24 | . 6 4 12 2 . . Sentry 10 | . . . 8 2 . . Zionite 8 | . . . . . 8 . Assembled 7 | . . . . . 7 . Best Kill Streak 5 | 3 4 2 4 2 5 4 Combat Bots Only 4 | . 3 2 4 2 2 4 Max Kills in Single Turn 4 | 1 1 2 3 1 4 3 Gunslinging . | . . . . . . . Exploded 3 | . . . 3 . 1 3 Melee 1 | . . . . . 1 . Uniques/NPCs Destroyed 4 | . . . . . 4 . 8R-AWN (-9/Exiles) EX-BIN (-9/Exiles) EX-HEX (-9/Exiles) EX-DEC (-9/Exiles) Combat | -11 -10 -10 -9 -9 -9 -8 -------- Run | Scr Mat Min Mat Min Exi Min Damage Taken 3388 | 40 537 304 825 167 875 640 Core 519 | . 71 40 64 64 165 115 Absorbed by Shields 639 | . . . 293 . 285 61 Redirected to Shielding 111 | . . . 62 14 35 . Core Remaining (%) 77 | 100 . 55 . . . . Volleys Fired 221 | 7 44 14 91 7 54 4 Largest 2 | 2 2 2 2 2 2 2 Hottest 130 | 80 85 85 130 130 126 130 Shots Fired 426 | 14 85 30 179 14 97 7 Gun 407 | 14 85 30 177 14 81 6 Cannon 12 | . . . . . 12 . Launcher 7 | . . . 2 . 4 1 Special . | . . . . . . . Kinetic 286 | . 32 20 153 . 81 . Thermal 61 | . 11 10 20 14 . 6 Explosive 7 | . . . 2 . 4 1 Electromagnetic 72 | 14 42 . 4 . 12 . Robot Hit Streak 18 | 10 15 9 18 8 9 3 Robot Miss Streak 5 | . 5 1 4 4 4 5 Penetration Max . | . . . . . . . Secondary Targets 7 | . 2 1 2 2 . . Max Gunslinging Chain 1 | . 1 1 1 1 . . Shots Hit Robots 322 | 10 56 22 130 12 87 5 Core Hits 182 | 6 25 10 76 20 37 8 Critical Kills 5 | . 1 . 1 . 3 . Critical Parts Destroyed 13 | . . . 1 . 12 . Critical Strikes 21 | . 3 . 2 . 16 . Destroy 18 | . 1 . 2 . 15 . Corrupt 2 | . 2 . . . . . Sever 1 | . . . . . 1 . Melee Attacks 44 | . . . 4 . 40 . Impact 1 | . . . 1 . . . Slashing 43 | . . . 3 . 40 . Piercing . | . . . . . . . Sneak Attacks . | . . . . . . . Combat Hostiles . | . . . . . . . Follow-up Attacks 8 | . . . . . 8 . Damage Inflicted 6513 | 232 797 318 2228 184 2455 299 Guns 4086 | 139 691 289 1936 184 788 59 Cannons 198 | . . . . . 198 . Explosions 1237 | 93 100 . 288 . 516 240 Melee 953 | . . . . . 953 . Ramming 39 | . 6 29 4 . . . Kinetic 3040 | . 203 167 1882 . 788 . Thermal 680 | 93 222 122 . 184 . 59 Explosive 1044 | . . . 288 . 516 240 Electromagnetic 757 | 139 366 . 54 . 198 . Impact . | . . . . . . . Slashing 953 | . . . . . 953 . Piercing . | . . . . . . . Highest Corruption 3 | 1 3 3 . . . . Average Corruption 2 | 1 1 3 . . . . Corruption Purged . | . . . . . . . Corruption Blocked . | . . . . . . . Effects 62 | . 30 32 . . . . Message Errors 15 | . 6 9 . . . . Matter Fused 14 | . 8 6 . . . . Heat Flow Errors 5 | . 1 4 . . . . Energy Discharges 9 | . 6 3 . . . . Data Loss (minor) 9 | . 6 3 . . . . Data Loss (major) 4 | . 1 3 . . . . Misfires 4 | . 1 3 . . . . Weapon Failures 2 | . 1 1 . . . . Overload Shots . | . . . . . . . Overflow Damage 30 | 2 6 . . . 9 13 Projectiles 3 | . . . . . 3 . Explosions 27 | 2 6 . . . 6 13 Melee . | . . . . . . . Knockbacks 1 | . 1 . . . . . Impact 1 | . 1 . . . . . Kinetic . | . . . . . . . Secondary . | . . . . . . . Self-Inflicted Damage 47 | 40 . . . . . 7 Shots 2 | 1 . . . . . 1 Rammed 7 | . 2 4 1 . . . Targets Rammed 7 | . 2 4 1 . . . Kicked . | . . . . . . . Crushed . | . . . . . . . Highest Temperature 346 | 24 185 346 216 153 117 42 Average Temperature 85 | 15 73 138 68 71 57 19 Received Heat Transfer 849 | . 300 192 288 69 . . Siege Activations . | . . . . . . . Robots Corrupted 1 | . . . . . 1 . Combat Hostiles . | . . . . . . . Parts Fried 4 | . 3 . 1 . . . Impact Corruptions . | . . . . . . . Robots Melted . | . . . . . . . Combat Hostiles . | . . . . . . . Parts Melted 1 | . . 1 . . . . Heat Transferred 1179 | 100 496 296 . 240 . 47 Parts Sabotaged . | . . . . . . . Parts Stolen . | . . . . . . . Parts Stripped . | . . . . . . . Power Chain Reactions 4 | 2 2 . . . . . Missiles Intercepted . | . . . . . . . Alert | -11 -10 -10 -9 -9 -9 -8 ------- Run | Scr Mat Min Mat Min Exi Min Peak Influence 516 | 15 212 50 516 231 . 115 Initial 126 | . 9 1 . 126 . . Average 186 | 8 38 3 290 161 . 107 Maximum Alert Level 2 | . 1 . 2 1 . . Low Security (%) 53 | 100 97 100 24 71 . 100 Level 1 34 | . 2 . 56 28 . . Level 2 11 | . . . 19 . . . Level 3 . | . . . . . . . Level 4 . | . . . . . . . Level 5 . | . . . . . . . High Security . | . . . . . . . Max Security . | . . . . . . . Squads Dispatched 3 | . 1 . 2 . . . Investigation 1 | . . . 1 . . . Extermination . | . . . . . . . Reinforcement 2 | . 1 . 1 . . . Assault . | . . . . . . . Garrison . | . . . . . . . Intercept . | . . . . . . . Searches Triggered . | . . . . . . . Construction Impeded . | . . . . . . . Haulers Reinforced . | . . . . . . . Active Scanning Responses . | . . . . . . . Cargo Convoy Interrupts . | . . . . . . . Stealth | -11 -10 -10 -9 -9 -9 -8 --------- Run | Scr Mat Min Mat Min Exi Min Distress Signals 4 | . 1 . 3 . . . Communications Jammed . | . . . . . . . Distress Signals . | . . . . . . . Times Spotted 109 | . 16 4 44 4 32 9 Peak Tracking Total 8 | . 5 2 5 2 8 5 Tactical Retreats 17 | . . . 2 . 15 . Traps | -11 -10 -10 -9 -9 -9 -8 ------- Run | Scr Mat Min Mat Min Exi Min Traps Triggered 2 | . 1 . 1 . . . Indirectly . | . . . . . . . Trap Hack Attempts . | . . . . . . . Triggered . | . . . . . . . Disarmed 3 | . . . 3 . . . Reprogrammed . | . . . . . . . Reused . | . . . . . . . Traps Extracted . | . . . . . . . Installed . | . . . . . . . Triggered . | . . . . . . . Machines | -11 -10 -10 -9 -9 -9 -8 ---------- Run | Scr Mat Min Mat Min Exi Min Machines Disabled 17 | . 2 . . . 15 . Max in Single Turn 2 | . 1 . . . 2 . Machines Sabotaged . | . . . . . . . Garrisons Compromised . | . . . . . . . Overloaded Fab Kills . | . . . . . . . Hacking | -11 -10 -10 -9 -9 -9 -8 --------- Run | Scr Mat Min Mat Min Exi Min Machines Accessed 23 | . 9 . 13 . 1 . Terminals 18 | . 7 . 11 . . . Fabricators . | . . . . . . . Repair Stations . | . . . . . . . Recycling Units 4 | . 2 . 2 . . . Scanalyzers . | . . . . . . . Garrison Access . | . . . . . . . Total Hacks 64 | . 27 . 36 . 1 . Successful 32 | . 15 . 16 . 1 . Failed 31 | . 12 . 19 . . . Catastrophic 2 | . . . 2 . . . Database Lockouts 1 | . . . 1 . . . Manual 44 | . 15 . 28 . 1 . Terminals 49 | . 21 . 28 . . . Fabricators . | . . . . . . . Repair Stations . | . . . . . . . Recycling Units 14 | . 6 . 8 . . . Scanalyzers . | . . . . . . . Garrison Access . | . . . . . . . Terminal Hacks 14 | . 7 . 6 . 1 . Robot Analysis 4 | . 1 . 3 . . . Prototype ID Bank 1 | . 1 . . . . . Unreport Threat 1 | . . . 1 . . . Locate Traps 4 | . 4 . . . . . Disarm Traps 1 | . . . 1 . . . Hauler Manifests 2 | . 1 . 1 . . . EX-Prototype ID Bank 1 | . . . . . 1 . Fabricator Hacks . | . . . . . . . Repair Station Hacks . | . . . . . . . Recycling Unit Hacks 5 | . 3 . 2 . . . Report Inventory 1 | . 1 . . . . . Retrieve Components 4 | . 2 . 2 . . . Scanalyzer . | . . . . . . . Garrison Access Hacks . | . . . . . . . Unauthorized Hacks 13 | . 5 . 8 . . . Terminals 7 | . 3 . 4 . . . Botnet 5 | . 2 . 3 . . . Operators 2 | . 1 . 1 . . . Fabricators . | . . . . . . . Repair Stations . | . . . . . . . Recycling Units 6 | . 2 . 4 . . . Reject 3 | . 1 . 2 . . . Mask 3 | . 1 . 2 . . . Scanalyzers . | . . . . . . . Garrison Access . | . . . . . . . Data Cores Recovered . | . . . . . . . Used . | . . . . . . . Hacking Detections 20 | . 8 . 12 . . . Full Trace Events . | . . . . . . . Feedback Events . | . . . . . . . Feedback Blocked . | . . . . . . . Robot Schematics Acquired . | . . . . . . . Robots Built . | . . . . . . . Authchips . | . . . . . . . Time . | . . . . . . . Total Robot Build Rating . | . . . . . . . Part Schematics Acquired . | . . . . . . . Parts Built . | . . . . . . . Authchips . | . . . . . . . Time . | . . . . . . . Total Part Build Rating . | . . . . . . . Parts Repaired . | . . . . . . . Time . | . . . . . . . Parts Recycled . | . . . . . . . Recycled Matter . | . . . . . . . Retrieved Matter . | . . . . . . . Retrieved Components 14 | . 3 . 11 . . . Parts Scanalyzed . | . . . . . . . Part Schematics Acquired . | . . . . . . . Parts Damaged . | . . . . . . . Bothacking | -11 -10 -10 -9 -9 -9 -8 ------------ Run | Scr Mat Min Mat Min Exi Min Used RIF Installer . | . . . . . . . Robots Hacked . | . . . . . . . Non-combat . | . . . . . . . Combat . | . . . . . . . Robot Hacks Applied . | . . . . . . . Relay Couplers Released . | . . . . . . . Fabnet Peak Effective % . | . . . . . . . Robots Rewired . | . . . . . . . Allies Hacked . | . . . . . . . Hacks Repelled . | . . . . . . . Allies | -11 -10 -10 -9 -9 -9 -8 -------- Run | Scr Mat Min Mat Min Exi Min Total Allies . | . . . . . . . Largest Group . | . . . . . . . Highest-Rated Group . | . . . . . . . Highest-Rated Ally . | . . . . . . . Total Orders . | . . . . . . . Ally Attacks 4 | . . . . . . 4 Total Damage 126 | . . . . . . 126 Kills . | . . . . . . . Allies Corrupted . | . . . . . . . Allies Melted . | . . . . . . . Turrets Deployed 1 | . . . . . . 1 Intel | -11 -10 -10 -9 -9 -9 -8 ------- Run | Scr Mat Min Mat Min Exi Min Robot Analysis Total 4 | . 1 . 3 . . . Derelict Logs Recovered 1 | . . 1 . . . . Drone Launches . | . . . . . . . Drone Recoveries . | . . . . . . . Exploration | -11 -10 -10 -9 -9 -9 -8 ------------- Run | Scr Mat Min Mat Min Exi Min Turns Passed 15761 | 136 2245 1633 6423 238 5009 77 Spaces Moved 5333 | 59 816 489 2174 66 1723 6 Core 10 | 10 . . . . . . Treads 4262 | 49 816 489 1113 66 1723 6 Legs . | . . . . . . . Wheels 1061 | . . . 1061 . . . Hover . | . . . . . . . Flight . | . . . . . . . Fastest Speed 50 | 50 160 320 215 320 160 320 Average Speed 269 | 145 248 320 268 320 269 320 Slowest Speed 320 | 160 320 320 320 320 320 320 Overloaded Moves . | . . . . . . . Propulsion Burnouts . | . . . . . . . Robots Hopped . | . . . . . . . Cave-ins Triggered . | . . . . . . . Exploration Rate (%) 59 | 5 99 99 99 19 92 6 Regions Visited 6 Branch Regions 4 Pre-discovered Areas 1 | . . 1 . . . . Known Exits Taken 1 | . . . 1 . . . Unknown Exits Taken 5 | 1 1 1 . 1 1 . Scrap Searched 1 | . . 1 . . . . Spaces Dug 4 | . . . 4 . . . Terrain Destroyed 104 | 5 8 . 21 . 55 15 Melee 4 | . . . 4 . . . Projectile 22 | . . . . . 22 . AOE 77 | 5 8 . 17 . 32 15 Terrain Rammed . | . . . . . . . Walls Destroyed . | . . . . . . . Machines Disabled . | . . . . . . . Actions | -11 -10 -10 -9 -9 -9 -8 --------- Run | Scr Mat Min Mat Min Exi Min Total 6264 | 91 960 525 2585 80 1967 56 Wait 323 | 12 46 13 164 7 40 41 Move 5327 | 58 815 488 2173 65 1722 6 Hop . | . . . . . . . Pick Up 115 | 5 28 3 46 . 33 . Fast Attach 30 | 7 1 . 12 . 10 . Attach 36 | 1 4 1 15 . 14 1 Detach 17 | . 1 . 5 . 11 . Swap 47 | 1 7 . 23 1 13 2 Drop 105 | . 12 2 51 . 38 2 Fire 221 | 7 44 14 91 7 54 4 Melee 36 | . . . 4 . 32 . Ram . | . . . . . . . Kick . | . . . . . . . Crush 7 | . 2 4 1 . . . Escape Stasis . | . . . . . . . Rewire . | . . . . . . . Trap . | . . . . . . . Miscellaneous . | . . . . . . . Route ------- -11/Scrapyard -10/Materials (discovered 4 exits: *Mat x3 / [*Min]) -10/Mines (discovered 2 exits: *Mat x2) -9/Materials (discovered 5 exits: *Mat x3 / *Min x2) -9/Mines -9/Exiles (discovered 2 exits: [*Min x2]) -8/Mines History --------- Turn | Location | Event 13 | -11/Scrapyard | Discovered new exit (range 15) 137 | -11/Scrapyard | Entered Materials 300 | -10/Materials | Build established: Mutant 638 | -10/Materials | Discovered new exit (range 6) 849 | -10/Materials | Discovered new exit (range 7) 980 | -10/Materials | Discovered new exit (range 5) 1766 | -10/Materials | Discovered new exit (range 3) 2382 | -10/Materials | Entered Mines 2456 | -10/Mines | Discovered new exit (range 4) 2683 | -10/Mines | Discovered new exit (range 10) 2713 | -10/Mines | Learned location of Storage (-7) 3426 | -10/Mines | Learned Materials terminal intel 4015 | -10/Mines | Entered Materials 4015 | -9/Materials | Evolved 2 slots: Utility x2 4016 | -9/Materials | Loaded intel: 12 terminal locations 4017 | -9/Materials | Discovered new exit (range 15) 4894 | -9/Materials | Discovered new exit (range 16) 5540 | -9/Materials | Discovered new exit (range 14) 6727 | -9/Materials | Discovered new exit (range 15) 6974 | -9/Materials | Central database locked down 7509 | -9/Materials | Discovered new exit (range 12) 8090 | -9/Materials | Identified exit to Materials 8243 | -9/Materials | Identified exit to Mines 10438 | -9/Materials | Entered Mines 10439 | -9/Mines | Assembled infested the area 10445 | -9/Mines | Received a Rocket Launcher from a helpful Derelict 10660 | -9/Mines | Deemed a non-threat by the Exiles lab entrance 10663 | -9/Mines | Discovered new exit (range 5) 10676 | -9/Mines | Entered Exiles 10753 | -9/Exiles | Met 8R-AWN 10808 | -9/Exiles | Met EX-HEX 10897 | -9/Exiles | Met EX-BIN 10936 | -9/Exiles | Aligned with FarCom system 10939 | -9/Exiles | Given EX-Vault access code 11012 | -9/Exiles | Opened EX-Vault 11039 | -9/Exiles | Found PSU Rigger 11052 | -9/Exiles | Found Superbattery 11123 | -9/Exiles | Warned to stay clear of 0b10 Research branches 11350 | -9/Exiles | Met EX-DEC 11603 | -9/Exiles | Discovered new exit (range 14) 12015 | -9/Exiles | Discovered new exit (range 14) 12883 | -9/Exiles | Attacked by the Exiles 12931 | -9/Exiles | Core integrity fell below 50% 12979 | -9/Exiles | Destroyed 8R-AWN 13009 | -9/Exiles | Lost 5 parts (2n3u) 13357 | -9/Exiles | Found Prototype Ballistic Gun 13361 | -9/Exiles | Found Prototype Ballistic Gun 13417 | -9/Exiles | Identified 8R-AWN's Boregun (x2) 13936 | -9/Exiles | Destroyed EX-BIN 13945 | -9/Exiles | Destroyed EX-HEX 13983 | -9/Exiles | Destroyed EX-DEC 14580 | -9/Exiles | Found Prototype Processor 14776 | -9/Exiles | Found Prototype Processor 15265 | -9/Exiles | Found Deploy-a-Sentry 15685 | -9/Exiles | Stole two prototypes: Superbattery, Deploy-a-Sentry 15685 | -9/Exiles | Entered Mines 15708 | -8/Mines | DAS Turret deployed 15756 | -8/Mines | 99-TNT came to Exiles' defense 15760 | -8/Mines | Identified Exp. Core Analyzer 15761 | -8/Mines | Core integrity fell below 20% 15762 | -8/Mines | Destroyed by S-10 Pest with Light Assault Rifle Last Messages --------------- 15687_ S-10 Pest destroyed. 15688_ The unstable cave ceiling collapses. 15694_ S-10 Pest destroyed. 15700_ Dropped Deploy-a-Sentry. 15708_ DAS Turret deployed. 15751_ 99-TNT knocked back. 15756_ 99-TNT: "I came as fast as I could... Wait, it was you!" 15756_ 99-TNT knocked back. 15758_ Lgt. Treads destroyed. 15758_ Shield Generator destroyed. 15758_ DAS Turret destroyed. 15760_ Lgt. Treads destroyed. 15760_ S-10 Pest destroyed. 15760_ Core Extractor disabled. 15760_ Spread Laser destroyed. 15760_ Hvy. Ion Engine destroyed. 15760_ Identified Exp. Core Analyzer. 15761_ Dropped Superbattery. 15762_ Extracted 78 energy. 15762_ The unstable cave ceiling collapses. Map ----- +----------------------------------------------------+ | ??????????????????????????????? | | ??????????????????????????????? | | ??????????????????????????????? | | ??????????????????????????????? | | ??????????????????????????????? | | ??????????????????????????????? | | ??????????????????????????????? | | ??????????????????????????????? | | ??????????????????????????????? | | ??????????????????????????????? | | ??????????????????????????????? | | ??????????????????????????????? | | ??????????????????????????????? | | ?????????????????????? ?????#?? | | ??????????????????????# #?? | | ?????????????????????? #?? | | ??????????????????????# #?? | | ??????????????????????# """ #?? | | ??????????????????????#s""" ##? | | ??????????????????????# " " ## | | ??????????????????????# # | | ???????????????????#?## | | ???????????????????# # [ | | ?????????? #### # | | ?????????????? | | ????????????????????# @ | | ??????????# ####### | | ? % d # | | ??????????# ####### ## | | ?????????????????????# ##? | | ?????????????????????#### ###?? | | ?????????????????????????##???? | | ??????????????????????????????? | | | | | | | | | | | | | | | | | | | | | | | | | | | | | | | | | | | +----------------------------------------------------+ Best States ------------- Heat Dissipation 42 Energy Generation 14 Energy Capacity 280 Matter Stores 300 Matter Capacity 300 Sight Range 16 Terrain Scan Density 10 Core Shielding 20 Propulsion Shielding 33 Evasion (%) 40 Targeting Accuracy 6 Recoil Reduction 2 Item Schematics ----------------- None Robot Schematics ------------------ None Fabricated ------------ Nothing Alien Tech Used ----------------- None Achievements -------------- None Challenges ------------ None Game ------ Seed DynamicStasisLog Manual? 0 Play Time 01:45:22 Cumulative 417.5 hours Start 2022.05.20 @ 22:18:02 End 2022.05.22 @ 00:58:05 Sessions 4 Manual Loads 0 Difficulty Rogue Special Mode None Game No. 30 Rogue 25 Adventurer 5 Explorer 0 Win Type - Total 19 Types 5/4/3/0/3/1/2/0/1 Lore% 78 Gallery% 86 Achievement% 80 Wizard Run 0 Options --------- ASCII 0 Keyboard 1 Movement Arrows Keybinds 0 Fullscreen 2 Font 18/SmallcapsGlow Map View 76x50 Tactical HUD 1 Map Filters NONE Filters NONE Steam 1 RUN: f3304f26-82b1-4897-83da-0f999025b018